Workbook

Sheet dash board
C1: ="DASH BOARD OF "&E3 -> DASH BOARD OF APPLE | AH1: 2
C2: General Information | G2: Income statement Assumptions | I2: =YEAR(E4)+1 -> 2011 | J2: =I2+1 -> 2012 | K2: 2013 | L2: 2014 | M2: 2015 | N2: 2016 | O2: 2017 | Q2: Scenario Analaysis
C3: Company Name | E3: APPLE | G3: i-Phone Growth % | I3: =AA9/1000 -> 1.02 | J3: =AB9/1000 -> 0.4 | K3: 0.2 | L3: 0.15 | M3: 0.15 | N3: 0.15 | O3: 0.15 | Q3: Operating Scenario Analaysis
C4: Last Fiscal Year End (dd/mm/yy) | E4: 2010-09-25 | G4: i-Pad Growth % | I4: 0.4 | J4: 0.25 | K4: 0.2 | L4: 0.15 | M4: 0.15 | N4: 0.15 | O4: 0.15 | AH4: 2
C5: Current Share Price | E5: 331 | G5: Software and Services Growth % | I5: =AA10/1000 -> 0.08 | J5: =AB10/1000 -> 0.08 | K5: 0.08 | L5: 0.075 | M5: 0.08 | N5: 0.08 | O5: 0.08 | Q5: Law Suits
C6: Current Date | E6: 2011-04-19 | G6: Other Sales Growth % | I6: 0.08 | J6: 0.08 | K6: 0.08 | L6: 0.08 | M6: 0.08 | N6: 0.08 | O6: 0.08
C7: Results | G7: Gross Margin % | I7: =AA11/1000 -> 0.38 | J7: =AB11/1000 -> 0.37 | K7: 0.37 | L7: 0.37 | M7: 0.37 | N7: 0.37 | O7: 0.36 | Q7: Status | R7: =IF(E5>E11,"Over Value",IF(E5<E11,"Under Value","PerfectlyValue")) -> Under Value
C8: EPS 2011 | E8: ='financial statements'!G48 -> 21.5018492 | G8: Research and Development % of Sale | I8: 0.03 | J8: 0.03 | K8: 0.03 | L8: 0.03 | M8: 0.03 | N8: 0.03 | O8: 0.03
C9: Enterprise value | E9: ='valuation sheet'!H39 -> 410926.1341 | G9: Selling General & administration Expenses % of Sale | I9: 0.08 | J9: 0.08 | K9: 0.08 | L9: 0.08 | M9: 0.08 | N9: 0.08 | O9: 0.08 | AA9: 1020 | AB9: 400 | AC9: 200 | AD9: 150 | AE9: 150 | AF9: 150 | AG9: 150
C10: Number of Shares | E10: ='valuation sheet'!H43 -> 931.6576697 | G10: Other income (Expense) % | I10: 0.002 | J10: 0.002 | K10: 0.002 | L10: 0.002 | M10: 0.002 | N10: 0.002 | O10: 0.002 | Q10: Recommendation | R10: =IF(E5>E11,"Sell",IF(E5<E11,"Buy","Hold")) -> Buy | AA10: 80 | AB10: 80 | AC10: 80 | AD10: 75 | AE10: 80 | AF10: 80 | AG10: 80
C11: Equity Value Per Share | E11: ='valuation sheet'!H44 -> 441.0698773 | G11: Effective Tax Rate | I11: =IF(ISNUMBER(I14),I14,IF(ISNUMBER(I13),I13,I12)) -> 0.24 | J11: 0.24 | K11: 0.24 | L11: 0.24 | M11: 0.24 | N11: 0.24 | O11: 0.24 | AA11: 380 | AB11: 370 | AC11: 370 | AD11: 370 | AE11: 370 | AF11: 370 | AG11: 360
C12: Valuation Assumptions | G12: 1. Straight line (default) | I12: 0.24 | J12: 0.24 | K12: 0.24 | L12: 0.24 | M12: 0.24 | N12: 0.24 | O12: 0.24
C13: Valuation / deal date | E13: =E6 -> 2011-04-19 | G13: 2. Override i. Use marginal tax rate
C14: Long term growth rate | E14: 0.04 | G14: 3. Override ii. Absolute projection
C15: Exit EV / EBITDA multiple | E15: 12 | G15: Depreciation Growth rate % | I15: 0.38 | J15: 0.38 | K15: 0.38 | L15: 0.38 | M15: 0.38 | N15: 0.38 | O15: 0.38
C16: Prepetual growth = 1 Exit multiple = 2 | E16: 1 | G16: Dividend Pay out Ratio % | I16: 0 | J16: 0 | K16: 0 | L16: 0 | M16: 0 | N16: 0 | O16: 0
C17: Calculated Discount Rate | E17: ='valuation sheet'!D9 -> 0.1100571774
C18: Over Riding Discount Rate
C19: Discount Rate | E19: =IF(ISNUMBER(E18),E18,E17) -> 0.1100571774
C20: Exit Year | E20: 2017
G36: Sensitivity Analysis of EPS with Key Variables
I38: iPhone Growth Rate | R38: Softwares and Services Growth Rate
H39: =E8 -> 21.5018492 | I39: 0.4 | J39: 0.5 | K39: 0.6 | L39: 0.7 | M39: 0.8 | Q39: =E8 -> 21.5018492 | R39: 0.05 | S39: 0.06 | T39: 0.07 | U39: 0.08 | V39: 0.09
H40: 0.05 | I40: 17.62277303 | J40: 18.1858405 | K40: 18.74890796 | L40: 19.31197542 | M40: 19.87504289 | Q40: 0.4 | R40: 17.99356925 | S40: 17.99932314 | T40: 18.00507703 | U40: 18.01083092 | V40: 18.01658482
F41: iPad Growth Rate | H41: 0.1 | I41: 17.67820987 | J41: 18.24127734 | K41: 18.8043448 | L41: 19.36741227 | M41: 19.93047973 | N41: IPhone Growth Rate | Q41: 0.5 | R41: 18.55663671 | S41: 18.5623906 | T41: 18.56814449 | U41: 18.57389839 | V41: 18.57965228
H42: 0.15 | I42: 17.73364672 | J42: 18.29671418 | K42: 18.85978164 | L42: 19.42284911 | M42: 19.98591657 | Q42: 0.6 | R42: 19.11970418 | S42: 19.12545807 | T42: 19.13121196 | U42: 19.13696585 | V42: 19.14271974
H43: 0.2 | I43: 17.78908356 | J43: 18.35215102 | K43: 18.91521849 | L43: 19.47828595 | M43: 20.04135341 | Q43: 0.7 | R43: 19.68277164 | S43: 19.68852553 | T43: 19.69427942 | U43: 19.70003331 | V43: 19.70578721
H44: 0.25 | I44: 17.8445204 | J44: 18.40758786 | K44: 18.97065533 | L44: 19.53372279 | M44: 20.09679026 | Q44: 0.8 | R44: 20.2458391 | S44: 20.25159299 | T44: 20.25734689 | U44: 20.26310078 | V44: 20.26885467
I46: iPhone Growth Rate | R46: Softwares and Services Growth Rate
H47: =E8 -> 21.5018492 | I47: 0.4 | J47: 0.5 | K47: 0.6 | L47: 0.7 | M47: 0.8 | Q47: =E8 -> 21.5018492 | R47: 0.05 | S47: 0.06 | T47: 0.07 | U47: 0.08 | V47: 0.09
H48: 0.06 | I48: 17.86540705 | J48: 18.42847452 | K48: 18.99154198 | L48: 19.55460944 | M48: 20.11767691 | Q48: 0.05 | R48: 21.09652963 | S48: 21.10228352 | T48: 21.10803741 | U48: 21.11379131 | V48: 21.1195452
F49: Other Sales Growth Rate | H49: 0.07 | I49: 17.93811899 | J49: 18.50118645 | K49: 19.06425392 | L49: 19.62732138 | M49: 20.19038884 | N49: iPad Growth Rate | Q49: 0.1 | R49: 21.15196647 | S49: 21.15772036 | T49: 21.16347425 | U49: 21.16922815 | V49: 21.17498204
H50: 0.08 | I50: 18.01083093 | J50: 18.57389839 | K50: 19.13696585 | L50: 19.70003332 | M50: 20.26310078 | Q50: 0.15 | R50: 21.20740332 | S50: 21.2131572 | T50: 21.2189111 | U50: 21.22466499 | V50: 21.23041888
H51: 0.09 | I51: 18.08354286 | J51: 18.64661033 | K51: 19.20967779 | L51: 19.77274525 | M51: 20.33581272 | Q51: 0.2 | R51: 21.26284016 | S51: 21.26859405 | T51: 21.27434794 | U51: 21.28010183 | V51: 21.28585572
H52: 0.1 | I52: 18.1562548 | J52: 18.71932226 | K52: 19.28238973 | L52: 19.84545719 | M52: 20.40852466 | Q52: 0.25 | R52: 21.318277 | S52: 21.32403089 | T52: 21.32978478 | U52: 21.33553867 | V52: 21.34129257
I54: Other Sales Growth Rate | R54: Softwares and Services Growth Rate
H55: =E8 -> 21.5018492 | I55: 0.06 | J55: 0.07 | K55: 0.08 | L55: 0.09 | M55: 0.1 | Q55: =E8 -> 21.5018492 | R55: 0.05 | S55: 0.06 | T55: 0.07 | U55: 0.08 | V55: 0.09
H56: 0.05 | I56: 20.96836744 | J56: 21.04107937 | K56: 21.11379131 | L56: 21.18650325 | M56: 21.25921518 | N56: Other Sales Growth | Q56: 0.06 | R56: 21.33916365 | S56: 21.34491754 | T56: 21.35067143 | U56: 21.35642533 | V56: 21.36217922
F57: iPad Growth Rate | H57: 0.1 | I57: 21.02380428 | J57: 21.09651621 | K57: 21.16922815 | L57: 21.24194009 | M57: 21.31465202 | Q57: 0.07 | R57: 21.41187559 | S57: 21.41762948 | T57: 21.42338337 | U57: 21.42913726 | V57: 21.43489115
H58: 0.15 | I58: 21.07924112 | J58: 21.15195306 | K58: 21.22466499 | L58: 21.29737693 | M58: 21.37008887 | Q58: 0.08 | R58: 21.48458752 | S58: 21.49034141 | T58: 21.49609531 | U58: 21.5018492 | V58: 21.50760309
H59: 0.2 | I59: 21.13467796 | J59: 21.2073899 | K59: 21.28010183 | L59: 21.35281377 | M59: 21.42552571 | Q59: 0.09 | R59: 21.55729946 | S59: 21.56305335 | T59: 21.56880724 | U59: 21.57456114 | V59: 21.58031503
H60: 0.25 | I60: 21.1901148 | J60: 21.26282674 | K60: 21.33553868 | L60: 21.40825061 | M60: 21.48096255 | Q60: 0.1 | R60: 21.6300114 | S60: 21.63576529 | T60: 21.64151918 | U60: 21.64727307 | V60: 21.65302697
I62: Gross Profit Margin | R62: Gross Profit Margin
H63: =E8 -> 21.5018492 | I63: 0.34 | J63: 0.35 | K63: 0.36 | L63: 0.37 | M63: 0.38 | Q63: =E8 -> 21.5018492 | R63: 0.34 | S63: 0.35 | T63: 0.36 | U63: 0.37 | V63: 0.38
H64: 0.4 | I64: 15.35099136 | J64: 16.01595125 | K64: 16.68091114 | L64: 17.34587103 | M64: 18.01083092 | Q64: 0.05 | R64: 17.99311344 | S64: 18.77328291 | T64: 19.55345238 | U64: 20.33362184 | V64: 21.11379131
F65: iPhone Growth Rate | H65: 0.5 | I65: 15.83043447 | J65: 16.51630045 | K65: 17.20216643 | L65: 17.88803241 | M65: 18.57389839 | N65: iPad Growth Rate | Q65: 0.1 | R65: 18.04031705 | S65: 18.82254482 | T65: 19.6047726 | U65: 20.38700037 | V65: 21.16922815
H66: 0.6 | I66: 16.30987758 | J66: 17.01664965 | K66: 17.72342172 | L66: 18.43019378 | M66: 19.13696585 | Q66: 0.15 | R66: 18.08752065 | S66: 18.87180673 | T66: 19.65609282 | U66: 20.4403789 | V66: 21.22466499
H67: 0.7 | I67: 16.7893207 | J67: 17.51699885 | K67: 18.244677 | L67: 18.97235516 | M67: 19.70003332 | Q67: 0.2 | R67: 18.13472425 | S67: 18.92106864 | T67: 19.70741304 | U67: 20.49375744 | V67: 21.28010183
H68: 0.8 | I68: 17.26876381 | J68: 18.01734805 | K68: 18.76593229 | L68: 19.51451654 | M68: 20.26310078 | Q68: 0.25 | R68: 18.18192785 | S68: 18.97033055 | T68: 19.75873326 | U68: 20.54713597 | V68: 21.33553867
I70: Gross Profit Margin | R70: Gross Profit Margin
H71: =E8 -> 21.5018492 | I71: 0.34 | J71: 0.35 | K71: 0.36 | L71: 0.37 | M71: 0.38 | Q71: =E8 -> 21.5018492 | R71: 0.34 | S71: 0.35 | T71: 0.36 | U71: 0.37 | V71: 0.38
H72: 0.06 | I72: 18.19971251 | J72: 18.98889071 | K72: 19.77806892 | L72: 20.56724712 | M72: 21.35642533 | Q72: 0.05 | R72: 18.30884061 | S72: 19.10277733 | T72: 19.89671406 | U72: 20.69065079 | V72: 21.48458752
F73: Other Sales Growth Rate | H73: 0.07 | I73: 18.26162558 | J73: 19.0535035 | K73: 19.84538142 | L73: 20.63725934 | M73: 21.42913726 | N73: Software and Services Growth | Q73: 0.06 | R73: 18.31373996 | S73: 19.10789032 | T73: 19.90204068 | U73: 20.69619105 | V73: 21.49034142
H74: 0.08 | I74: 18.32353865 | J74: 19.11811629 | K74: 19.91269393 | L74: 20.70727156 | M74: 21.5018492 | Q74: 0.07 | R74: 18.3186393 | S74: 19.1130033 | T74: 19.90736731 | U74: 20.70173131 | V74: 21.49609531
H75: 0.09 | I75: 18.38545173 | J75: 19.18272908 | K75: 19.98000643 | L75: 20.77728378 | M75: 21.57456114 | Q75: 0.08 | R75: 18.32353865 | S75: 19.11811629 | T75: 19.91269393 | U75: 20.70727156 | V75: 21.5018492
H76: 0.1 | I76: 18.4473648 | J76: 19.24734187 | K76: 20.04731894 | L76: 20.84729601 | M76: 21.64727307 | Q76: 0.09 | R76: 18.328438 | S76: 19.12322927 | T76: 19.91802055 | U76: 20.71281182 | V76: 21.50760309
G78: Sensitivity Analysis of Equity Value Per Share with Key Variables
I80: Growth Rate | T80: EV/EBITDA Multiple
H81: =E11 -> 441.0698773 | I81: 0.02 | J81: 0.03 | K81: 0.04 | L81: 0.05 | M81: 0.06 | Q81: =E11 -> 441.0698773 | R81: 11 | S81: 12 | T81: 13 | U81: 14 | V81: 15
H82: 0.09 | I82: 353.1115688 | J82: 391.5972551 | K82: 441.0698773 | L82: 507.0176735 | M82: 599.3144569 | Q82: 0.09 | R82: 441.0698773 | S82: 441.0698773 | T82: 441.0698773 | U82: 441.0698773 | V82: 441.0698773
F83: Discount Rate | H83: 0.1 | I83: 353.1115688 | J83: 391.5972551 | K83: 441.0698773 | L83: 507.0176735 | M83: 599.3144569 | O83: Discount Rate | Q83: 0.1 | R83: 441.0698773 | S83: 441.0698773 | T83: 441.0698773 | U83: 441.0698773 | V83: 441.0698773
H84: 0.11 | I84: 353.1115688 | J84: 391.5972551 | K84: 441.0698773 | L84: 507.0176735 | M84: 599.3144569 | Q84: 0.11 | R84: 441.0698773 | S84: 441.0698773 | T84: 441.0698773 | U84: 441.0698773 | V84: 441.0698773
H85: 0.12 | I85: 353.1115688 | J85: 391.5972551 | K85: 441.0698773 | L85: 507.0176735 | M85: 599.3144569 | Q85: 0.12 | R85: 441.0698773 | S85: 441.0698773 | T85: 441.0698773 | U85: 441.0698773 | V85: 441.0698773
H86: 0.13 | I86: 353.1115688 | J86: 391.5972551 | K86: 441.0698773 | L86: 507.0176735 | M86: 599.3144569 | Q86: 0.13 | R86: 441.0698773 | S86: 441.0698773 | T86: 441.0698773 | U86: 441.0698773 | V86: 441.0698773

Sheet financial statements
C1: ="Financial Statement Model for "&D3 -> Financial Statement Model for APPLE
C2: General Information | T2: ='dash board'!AH4 -> 2
C3: Company Name | D3: ='dash board'!E3 -> APPLE | T3: ='dash board'!AH1 -> 2
C4: Last Fiscal Year End (dd/mm/yy) | D4: ='dash board'!E4 -> 2010-09-25
C5: Current Share Price | D5: ='dash board'!E5 -> 331
C6: Current Date | D6: ='dash board'!E6 -> 2011-04-19
C8: Firstcell Consensus EPS estimates
C9: =D15 -> 2008 | D9: 6.78
C10: =E15 -> 2009 | D10: 9.08
C11: =F15 -> 2010 | D11: 15.15
C13: Income statement
D14: Actual | G14: Projected
D15: =E15-1 -> 2008 | E15: =F15-1 -> 2009 | F15: =YEAR(D4) -> 2010 | G15: =F15+1 -> 2011 | H15: 2012 | I15: 2013 | J15: 2014 | K15: 2015 | L15: 2016 | M15: 2017
D16: =DATE(YEAR(E16)-1,MONTH(E16),DAY(E16)) -> 2008-09-25 | E16: =DATE(YEAR(F16)-1,MONTH(F16),DAY(F16)) -> 2009-09-25 | F16: =D4 -> 2010-09-25 | G16: =DATE(YEAR(F16)+1,MONTH(F16),DAY(F16)) -> 2011-09-25 | H16: 2012-09-25 | I16: 2013-09-25 | J16: 2014-09-25 | K16: 2015-09-25 | L16: 2016-09-25 | M16: 2017-09-25
C18: Sales
C19: i-Phones | D19: 6742 | E19: 13033 | F19: 25179 | G19: =F19*(1+G60) -> 50861.58 | H19: 71206.212 | I19: 85447.4544 | J19: 98264.57256 | K19: 113004.2584 | L19: 129954.8972 | M19: 149448.1318
C20: i-Pad | F20: 4958 | G20: 6941.2 | H20: 8676.5 | I20: 10411.8 | J20: 11973.57 | K20: 13769.6055 | L20: 15835.04632 | M20: 18210.30327
C21: Softwares and Services | D21: 2208 | E21: 2411 | F21: 2573 | G21: =F21*(1+G62) -> 2778.84 | H21: =G21*(1+H62) -> 3001.1472 | I21: 3241.238976 | J21: 3484.331899 | K21: 3763.078451 | L21: 4064.124727 | M21: 4064.124727
C22: Others | D22: 28541 | E22: 27461 | F22: 32515 | G22: =F22*(1+G63) -> 35116.2 | H22: =G22*(1+H63) -> 37925.496 | I22: 40959.53568 | J22: 44236.29853 | K22: 47775.20242 | L22: 51597.21861 | M22: 55724.9961
C23: Net Sales | D23: =SUM(D19:D22) -> 37491 | E23: =SUM(E19:E22) -> 42905 | F23: 65225 | G23: 95697.82 | H23: 120809.3552 | I23: 140060.0291 | J23: 157958.773 | K23: 178312.1448 | L23: =SUM(L19:L22) -> 201451.2869 | M23: =SUM(M19:M22) -> 227447.5559
C24: Cost Of Saes | D24: -24294 | E24: -25683 | F24: -39541 | G24: =-G23*(1-G64) -> -59332.6484 | H24: -76109.89378 | I24: -88237.81831 | J24: -99514.02699 | K24: -112336.6512 | L24: -126914.3107 | M24: -145566.4358
C25: Gross Margin | D25: =SUM(D23:D24) -> 13197 | E25: =SUM(E23:E24) -> 17222 | F25: 25684 | G25: 36365.1716 | H25: 44699.46142 | I25: 51822.21075 | J25: 58444.74601 | K25: 65975.49358 | L25: =SUM(L23:L24) -> 74536.97614 | M25: =SUM(M23:M24) -> 81881.12012
C26: Operating Expenses
C27: Research and Development | D27: 1109 | E27: 1333 | F27: 1782 | G27: =G23*G65 -> 2870.9346 | H27: 3624.280656 | I27: 4201.800872 | J27: 4738.76319 | K27: 5349.364344 | L27: 6043.538606 | M27: 6823.426677
C28: Selling, General and administrative | D28: 3761 | E28: 4149 | F28: 5517 | G28: =G23*G66 -> 7655.8256 | H28: 9664.748416 | I28: 11204.80232 | J28: 12636.70184 | K28: 14264.97158 | L28: 16116.10295 | M28: 18195.80447
C29: Total Operating Expenses | D29: =-(SUM(D27:D28)) -> -4870 | E29: =-(SUM(E27:E28)) -> -5482 | F29: -7299 | G29: -10526.7602 | H29: -13289.02907 | I29: -15406.6032 | J29: -17375.46503 | K29: -19614.33593 | L29: =-(SUM(L27:L28)) -> -22159.64156 | M29: =-(SUM(M27:M28)) -> -25019.23115
C30: Operating Income (EBIT) | D30: =SUM(D25,D29) -> 8327 | E30: =SUM(E25,E29) -> 11740 | F30: 18385 | G30: 25838.4114 | H30: 31410.43235 | I30: 36415.60755 | J30: 41069.28098 | K30: 46361.15765 | L30: 52377.33459 | M30: 56861.88897
C31: Interest Income | D31: 653 | E31: 407 | F31: 311 | G31: =G220 -> 687.47545 | H31: =H220 -> 917.9707774 | I31: 1173.425442 | J31: 1463.15637 | K31: 1799.308524 | L31: 2191.527534 | M31: 2640.160895
C32: Interest Expense
C33: law suits expense | G33: =-(OFFSET(G279,$T$2,0)) -> -312
C34: Other income (Expense) | D34: -33 | E34: -81 | F34: -156 | G34: =-(G23*G67) -> -191.39564 | H34: -241.6187104 | I34: -280.1200581 | J34: -315.917546 | K34: -356.6242896 | L34: -402.9025737 | M34: -454.8951118
C35: Income Before Taxes (EBT) | D35: =SUM(D30,D31,D34) -> 8947 | E35: =SUM(E30,E31,E34) -> 12066 | F35: =SUM(F30,F31,F34) -> 18540 | G35: =SUM(G30:G34) -> 26022.49121 | H35: =SUM(H30:H34) -> 32086.78442 | I35: 37308.91294 | J35: 42216.5198 | K35: 47803.84189 | L35: 54165.95955 | M35: 59047.15476
C36: Taxes | D36: -2828 | E36: -3831 | F36: -4527 | G36: =-(G68*G35) -> -6245.39789 | H36: -7700.828261 | I36: -8954.139105 | J36: -10131.96475 | K36: -11472.92205 | L36: -12999.83029 | M36: -14171.31714
C37: Net Income | D37: =SUM(D35:D36) -> 6119 | E37: =SUM(E35:E36) -> 8235 | F37: 14013 | G37: 19777.09332 | H37: 24385.95616 | I37: 28354.77383 | J37: 32084.55505 | K37: 36330.91983 | L37: =SUM(L35:L36) -> 41166.12926 | M37: =SUM(M35:M36) -> 44875.83762
C38: Common Dividends | D38: 0 | E38: 0 | F38: 0 | G38: =G37*G70 -> 0 | H38: 0 | I38: 0 | J38: 0 | K38: 0 | L38: 0 | M38: 0
C40: Pro Forma EBITDA Reconciliation
C41: EBIT | D41: =D30 -> 8327 | E41: 11740 | F41: 18385 | G41: 25838.4114 | H41: 31410.43235 | I41: 36415.60755 | J41: 41069.28098 | K41: 46361.15765 | L41: =L30 -> 52377.33459 | M41: =M30 -> 56861.88897
C42: Depreciation & Amortization | D42: 496 | E42: 734 | F42: 1027 | G42: =G171+G163 -> 1405.04 | H42: 1898.4152 | I42: 2556.692976 | J42: 3492.416307 | K42: 4811.694503 | L42: 6633.678415 | M42: 9148.016212
C43: EBITDA | D43: =SUM(D41:D42) -> 8823 | E43: =SUM(E41:E42) -> 12474 | F43: 19412 | G43: 27243.4514 | H43: 33308.84755 | I43: 38972.30053 | J43: 44561.69729 | K43: 51172.85215 | L43: =SUM(L41:L42) -> 59011.013 | M43: =SUM(M41:M42) -> 66009.90519
C45: Pro Forma Basic EPS Reconciliation
C46: Net Income for Basic EPS | D46: =D37 -> 6119 | E46: =E37 -> 8235 | F46: 14013 | G46: 19777.09332 | H46: 24385.95616 | I46: 28354.77383 | J46: 32084.55505 | K46: 36330.91983 | L46: =L37 -> 41166.12926 | M46: =M37 -> 44875.83762
C47: Basic Shares Outstanding | D47: 881.592 | E47: 893.016 | F47: 909.461 | G47: =G179 -> 919.7856953 | H47: 927.557086 | I47: 935.3284767 | J47: 943.0998673 | K47: 950.871258 | L47: 958.6426487 | M47: 966.4140394
C48: Basic EPS | D48: =D46/D47 -> 6.940852458 | E48: =E46/E47 -> 9.2215593 | F48: 15.40802739 | G48: 21.5018492 | H48: 26.29051788 | I48: 30.31531119 | J48: 34.02031552 | K48: 38.2080324 | L48: =L46/L47 -> 42.9421008 | M48: =M46/M47 -> 46.43541566
C50: Pro forma Diluted EPS Reconconciliation
C51: Adjustment to net income for diluted EPS calc.
C52: Net income for diluted EPS | D52: =D37 -> 6119 | E52: =E37 -> 8235 | F52: 14013 | G52: 19777.09332 | H52: 24385.95616 | I52: 28354.77383 | J52: 32084.55505 | K52: 36330.91983 | L52: =L37 -> 41166.12926 | M52: =M37 -> 44875.83762
C53: Stock options, restricted stock and converts | D53: 20.547 | E53: 13.989 | F53: 15.251 | G53: =$F$53 -> 15.251 | H53: =$F$53 -> 15.251 | I53: 15.251 | J53: 15.251 | K53: 15.251 | L53: 15.251 | M53: 15.251
C54: Diluted shares outstanding | D54: =D47+D53 -> 902.139 | E54: =E47+E53 -> 907.005 | F54: 924.712 | G54: 935.0366953 | H54: 942.808086 | I54: 950.5794767 | J54: 958.3508673 | K54: 966.122258 | L54: =L47+L53 -> 973.8936487 | M54: =M47+M53 -> 981.6650394
C55: Diluted EPS | D55: =D52/D54 -> 6.782768509 | E55: =E52/E54 -> 9.079332528 | F55: 15.15390738 | G55: 21.15114136 | H55: 25.86523866 | I55: 29.82893543 | J55: 33.47892316 | K55: 37.60488854 | L55: =L52/L54 -> 42.2696352 | M55: =M52/M54 -> 45.71400204
C56: Firstcall consensus EPS | D56: =D9 -> 6.78 | E56: =D10 -> 9.08 | F56: =D11 -> 15.15
C57: Model variance from consensus | D57: =D55-D56 -> 0.002768509066 | E57: =E55-E56 -> -0.0006674715134 | F57: =F55-F56 -> 0.00390737873
C59: Income statement Assumptions
C60: i-Phone Growth % | D60: 0 | E60: =E19/D19-1 -> 0.9331059033 | F60: =F19/E19-1 -> 0.9319419934 | G60: =OFFSET(G239,$T$3,0) -> 1.02 | H60: 0.4 | I60: 0.2 | J60: 0.15 | K60: 0.15 | L60: 0.15 | M60: 0.15
C61: i-Pad Growth % | G61: =OFFSET(G244,$T$3,0) -> 0.4 | H61: 0.25 | I61: 0.2 | J61: 0.15 | K61: 0.15 | L61: 0.15 | M61: 0.15
C62: Softwares and Services Growth % | E62: =E21/D21-1 -> 0.0919384058 | F62: =F21/E21-1 -> 0.0671920365 | G62: =OFFSET(G249,$T$3,0) -> 0.08 | H62: 0.08 | I62: 0.08 | J62: 0.075 | K62: 0.08 | L62: 0.08
C63: Other Sales % | E63: =E22/D22-1 -> -0.03784029992 | F63: =F22/E22-1 -> 0.1840428244 | G63: =OFFSET(G254,$T$3,0) -> 0.08 | H63: 0.08 | I63: 0.08 | J63: 0.08 | K63: 0.08 | L63: 0.08 | M63: 0.08
C64: Gross Margin | D64: =D25/D23 -> 0.3520044811 | E64: =E25/E23 -> 0.4013984384 | F64: =F25/F23 -> 0.3937753929 | G64: =OFFSET(G259,$T$3,0) -> 0.38 | H64: 0.37 | I64: 0.37 | J64: 0.37 | K64: 0.37 | L64: 0.37 | M64: =OFFSET(M259,$T$3,0) -> 0.36
C65: Research and Development % | D65: =D27/D23 -> 0.02958043264 | E65: =E27/E23 -> 0.03106864002 | F65: =F27/F23 -> 0.02732081257 | G65: =OFFSET(G264,$T$3,0) -> 0.03 | H65: 0.03 | I65: 0.03 | J65: 0.03 | K65: 0.03 | L65: 0.03 | M65: 0.03
C66: Selling General & administration Expenses | D66: =D28/D23 -> 0.1003174095 | E66: =E28/E23 -> 0.09670201608 | F66: =F28/F23 -> 0.08458413185 | G66: =OFFSET(G269,$T$3,0) -> 0.08 | H66: 0.08 | I66: 0.08 | J66: 0.08 | K66: 0.08 | L66: 0.08 | M66: 0.08
C67: Other income (Expense) % | D67: =-(D34/D23) -> 0.0008802112507 | E67: =-(E34/E23) -> 0.001887891854 | F67: =-(F34/F23) -> 0.002391720966 | G67: ='dash board'!I10 -> 0.002 | H67: ='dash board'!J10 -> 0.002 | I67: ='dash board'!K10 -> 0.002 | J67: ='dash board'!L10 -> 0.002 | K67: ='dash board'!M10 -> 0.002 | L67: ='dash board'!N10 -> 0.002 | M67: ='dash board'!O10 -> 0.002
C68: Effective Tax Rate | D68: =-(D36/D35) -> 0.3160836034 | E68: =-(E36/E35) -> 0.3175037295 | F68: =-(F36/F35) -> 0.2441747573 | G68: ='dash board'!I11 -> 0.24 | H68: ='dash board'!J11 -> 0.24 | I68: ='dash board'!K11 -> 0.24 | J68: ='dash board'!L11 -> 0.24 | K68: ='dash board'!M11 -> 0.24 | L68: ='dash board'!N11 -> 0.24 | M68: ='dash board'!O11 -> 0.24
C69: Depreciation % | E69: =E42/D42-1 -> 0.4798387097 | F69: =F42/E42-1 -> 0.3991825613 | G69: ='dash board'!I15 -> 0.38 | H69: ='dash board'!J15 -> 0.38 | I69: ='dash board'!K15 -> 0.38 | J69: ='dash board'!L15 -> 0.38 | K69: ='dash board'!M15 -> 0.38 | L69: ='dash board'!N15 -> 0.38 | M69: ='dash board'!O15 -> 0.38
C70: Dividend Pay out Ratio | D70: =D38/D37 -> 0 | E70: =E38/E37 -> 0 | F70: =F38/F37 -> 0 | G70: ='dash board'!I16 -> 0 | H70: ='dash board'!J16 -> 0 | I70: ='dash board'!K16 -> 0 | J70: ='dash board'!L16 -> 0 | K70: ='dash board'!M16 -> 0 | L70: ='dash board'!N16 -> 0 | M70: ='dash board'!O16 -> 0
C72: Balance Sheet
D73: Actual | G73: Projected
D74: =E74-1 -> 2008 | E74: =F74-1 -> 2009 | F74: =YEAR(D4) -> 2010 | G74: =F74+1 -> 2011 | H74: 2012 | I74: 2013 | J74: 2014 | K74: 2015 | L74: 2016 | M74: 2017
D75: =DATE(YEAR(E75)-1,MONTH(E75),DAY(E75)) -> 2008-09-25 | E75: =DATE(YEAR(F75)-1,MONTH(F75),DAY(F75)) -> 2009-09-25 | F75: =D4 -> 2010-09-25 | G75: =DATE(YEAR(F75)+1,MONTH(F75),DAY(F75)) -> 2011-09-25 | H75: 2012-09-25 | I75: 2013-09-25 | J75: 2014-09-25 | K75: 2015-09-25 | L75: 2016-09-25 | M75: 2017-09-25
C76: Current Assets
C77: Cash & cash equivalent (incl investment securities) | D77: 11875 | E77: 5263 | F77: 11261 | G77: =F77+G208 -> 31868.4796 | H77: 55671.3584 | I77: 81794.3451 | J77: 111304.4002 | K77: 145530.2167 | L77: 185446.292 | M77: 231089.5163
C78: Short-Term Marketable Securities | D78: 12615 | E78: 18201 | F78: 14359 | G78: 14359 | H78: 14359 | I78: 14359 | J78: 14359 | K78: 14359 | L78: 14359 | M78: 14359
C79: Account Receiable | D79: 2469 | E79: 3413 | F79: 5565 | G79: =G122 -> 8164.942404 | H79: 10307.45974 | I79: 11949.92812 | J79: 13477.04978 | K79: 15213.6004 | L79: 17187.83306 | M79: 19405.83593
C80: Less Allownaces | D80: -47 | E80: -52 | F80: -55 | G80: =G126 -> -80.69574703 | H80: -101.8706713 | I80: -118.1035124 | J80: -133.196359 | K80: -150.3590336 | L80: =L126 -> -169.870767 | M80: =M126 -> -191.7917298
C81: Net receivables | D81: =SUM(D79:D80) -> 2422 | E81: =SUM(E79:E80) -> 3361 | F81: =SUM(F79:F80) -> 5510 | G81: 8084.246657 | H81: 10205.58907 | I81: 11831.82461 | J81: 13343.85342 | K81: 15063.24136 | L81: =L127 -> 17017.96229 | M81: =M127 -> 19214.0442
C82: Inventories | D82: 509 | E82: 455 | F82: 1051 | G82: =G132 -> 1577.062125 | H82: 2023.0014 | I82: 2345.361701 | J82: 2645.083391 | K82: 2985.908815 | L82: 3373.383085 | M82: 3869.156673
C83: Deffered Tax Assets | D83: 1447 | E83: 1135 | F83: 1636 | G83: =G141 -> 1636 | H83: 1636 | I83: 1636 | J83: 1636 | K83: 1636 | L83: 1636 | M83: 1636
C84: Vendor Non-Trade Receivable | D84: 0 | E84: 1696 | F84: 4414 | G84: =G137 -> 6476.200498 | H84: 8175.584421 | I84: 9478.343706 | J84: 10689.61325 | K84: 12066.99589 | L84: 13632.90119 | M84: 15392.15809
C85: Other Current Assets | D85: 5822 | E85: 1444 | F85: 3447 | G85: =G145 -> 3447 | H85: 3447 | I85: 3447 | J85: 3447 | K85: 3447 | L85: 3447 | M85: 3447
C86: Total Current Assets | D86: =SUM(D85,D84,D83,D82,D81,D78,D77,) -> 34690 | E86: 31555 | F86: 41678 | G86: 67447.98888 | H86: 95517.53329 | I86: 124891.8751 | J86: 157424.9502 | K86: 195088.3628 | L86: =SUM(L85,L84,L83,L82,L81,L78,L77,) -> 238912.5386 | M86: =SUM(M85,M84,M83,M82,M81,M78,M77,) -> 289006.8752
C87: Non-Current Assets
C88: Long Term Marketable Securities | D88: 0 | E88: 10528 | F88: 25391 | G88: 25391 | H88: 25391 | I88: 25391 | J88: 25391 | K88: 25391 | L88: 25391 | M88: 25391
C89: Property, Plant and Equipment Net | D89: 2455 | E89: 2954 | F89: 4768 | G89: =G172 -> 9187.8292 | H89: 14611.97531 | I89: 20497.88408 | J89: 26500.99415 | K89: 32405.02834 | L89: 37875.42713 | M89: 42391.26428
C90: Goodwill | D90: 207 | E90: 206 | F90: 741 | G90: 741 | H90: 741 | I90: 741 | J90: 741 | K90: 741 | L90: 741 | M90: 741
C91: Acquired Intangible Assets Net | D91: 285 | E91: 247 | F91: 342 | G91: =G164 -> 259 | H91: 185 | I91: 146 | J91: 128 | K91: 111 | L91: 94 | M91: 77
C92: Other Assets | D92: 1935 | E92: 2011 | F92: 2263 | G92: 2263 | H92: 2263 | I92: 2263 | J92: 2263 | K92: 2263 | L92: 2263 | M92: 2263
C93: Total Non-Current Assets | D93: =SUM(D88:D92) -> 4882 | E93: 15946 | F93: 33505 | G93: 37841.8292 | H93: 43191.97531 | I93: 49038.88408 | J93: 55023.99415 | K93: 60911.02834 | L93: =SUM(L88:L92) -> 66364.42713 | M93: =SUM(M88:M92) -> 70863.26428
C94: Total Assets | D94: =SUM(D86,D93) -> 39572 | E94: =SUM(E86+E93) -> 47501 | F94: 75183 | G94: 105289.8181 | H94: 138709.5086 | I94: 173930.7592 | J94: 212448.9444 | K94: 255999.3911 | L94: =SUM(L86+L93) -> 305276.9657 | M94: =SUM(M86+M93) -> 359870.1395
C96: Current Liabilities
C97: Account Payables | D97: 5520 | E97: 5601 | F97: 12015 | G97: =G150 -> 18028.92619 | H97: 23126.89041 | I97: 26812.10356 | J97: 30238.51279 | K97: 34134.81866 | L97: 38564.41272 | M97: 44232.08128
C98: Accrued Expenses | D98: 8572 | E98: 3852 | F98: 5723 | G98: =G154 -> 7941.687495 | H98: 10025.62175 | I98: 11623.17994 | J98: 13108.54534 | K98: 14797.61326 | L98: 16717.86427 | M98: 18875.22005
C99: Deffered Revenue | D99: 0 | E99: 2053 | F99: 2984 | G99: =G159 -> 4378.111075 | H99: 5526.946967 | I99: 6407.652383 | J99: 7226.507913 | K99: 8157.661021 | L99: 9216.26125 | M99: 10405.57312
C100: Total Current Liabilities | D100: =SUM(D97:D99) -> 14092 | E100: 11506 | F100: 20722 | G100: 30348.72476 | H100: 38679.45913 | I100: 44842.93588 | J100: 50573.56604 | K100: 57090.09294 | L100: =SUM(L97:L99) -> 64498.53824 | M100: =SUM(M97:M99) -> 73512.87444
C101: Non-Current Liabilities
C102: Deffered Revenue Non-Current | D102: 0 | E102: 853 | F102: 1139 | G102: 1139 | H102: 1139 | I102: 1139 | J102: 1139 | K102: 1139 | L102: 1139 | M102: 1139
C103: Other Non-Current Liabilities | D103: 4450 | E103: 3502 | F103: 5531 | G103: 5531 | H103: 5531 | I103: 5531 | J103: 5531 | K103: 5531 | L103: 5531 | M103: 5531
C104: Total Non-Current Liabilities | D104: =SUM(D102:D103) -> 4450 | E104: 4355 | F104: 6670 | G104: 6670 | H104: 6670 | I104: 6670 | J104: 6670 | K104: 6670 | L104: 6670 | M104: 6670
C105: Total Liabiliies | D105: =SUM(D104,D100) -> 18542 | E105: 15861 | F105: 27392 | G105: 37018.72476 | H105: 45349.45913 | I105: 51512.93588 | J105: 57243.56604 | K105: 63760.09294 | L105: 71168.53824 | M105: 80182.87444
C107: Commitments And Contingencies
C108: Shareholders Equity
C109: Common Stock | D109: 7177 | E109: 8210 | F109: 10668 | G109: =F109+G175 -> 11371 | H109: 12074 | I109: 12777 | J109: 13480 | K109: 14183 | L109: 14886 | M109: 15589
C110: Retained Earnings | D110: 13845 | E110: 23353 | F110: 37169 | G110: =F110+G37-G38 -> 56946.09332 | H110: 81332.04948 | I110: 109686.8233 | J110: 141771.3784 | K110: 178102.2982 | L110: 219268.4274 | M110: 264144.2651
C111: Accumulated other Comprehensive (Loss)/Income | D111: 8 | E111: 77 | F111: -46 | G111: =$F$111 -> -46 | H111: -46 | I111: -46 | J111: -46 | K111: -46 | L111: -46 | M111: -46
C112: Total Shareholders Equity | D112: =SUM(D109:D111) -> 21030 | E112: 31640 | F112: 47791 | G112: 68271.09332 | H112: 93360.04948 | I112: 122417.8233 | J112: 155205.3784 | K112: 192239.2982 | L112: =SUM(L109:L111) -> 234108.4274 | M112: =SUM(M109:M111) -> 279687.2651
C113: Total Shareholders Equity and Liabilities | D113: =SUM(D112,D105) -> 39572 | E113: 47501 | F113: 75183 | G113: 105289.8181 | H113: 138709.5086 | I113: 173930.7592 | J113: 212448.9444 | K113: 255999.3911 | L113: =SUM(L112,L105) -> 305276.9657 | M113: =SUM(M112,M105) -> 359870.1395
C114: Check | D114: =D94-D113 -> 0 | E114: 0 | F114: 0 | G114: 0 | H114: 2.619344741e-10 | I114: 1.135049388e-09 | J114: 3.492459655e-09 | K114: 9.167706594e-09 | L114: 2.095475793e-08 | M114: 4.330649972e-08
C115: Supporting Schedules
C117: Working Capital
C119: 1.Growth with Revenues | G119: =G23/F23-1 -> 0.4671954005 | H119: 0.2624044644 | I119: 0.1593475424 | J119: 0.1277933759 | K119: 0.1288524305 | L119: 0.1297676167 | M119: 0.129044939
C120: 2.Override i. Days of Revenues(Avg Collection Period) | E120: =(E75-D75)*E81/E23 -> 28.59258828 | F120: =(F75-E75)*F81/F23 -> 30.83403603
C121: 3.Override ii. Absolute Projection
C122: Account Receivables | D122: =D79 -> 2469 | E122: =E79 -> 3413 | F122: =F79 -> 5565 | G122: =IF(ISNUMBER(G121),G121,IF(ISNUMBER(G120),G120/(G16-F16)*G23,F122*(1+G119))) -> 8164.942404 | H122: 10307.45974 | I122: 11949.92812 | J122: 13477.04978 | K122: 15213.6004 | L122: 17187.83306 | M122: 19405.83593
C124: 1.Growth with Revenues | G124: =G23/F23-1 -> 0.4671954005 | H124: 0.2624044644 | I124: 0.1593475424 | J124: 0.1277933759 | K124: 0.1288524305 | L124: 0.1297676167 | M124: 0.129044939
C125: 2.Absolute Projection enter in (-)
C126: Allowances | D126: =D80 -> -47 | E126: =E80 -> -52 | F126: =F80 -> -55 | G126: =IF(ISNUMBER(G125),G125,F126*(1+G124)) -> -80.69574703 | H126: -101.8706713 | I126: -118.1035124 | J126: -133.196359 | K126: -150.3590336 | L126: -169.870767 | M126: -191.7917298
C127: Net Receivables | D127: =D122+D126 -> 2422 | E127: 3361 | F127: 5510 | G127: 8084.246657 | H127: 10205.58907 | I127: 11831.82461 | J127: 13343.85342 | K127: 15063.24136 | L127: =L122+L126 -> 17017.96229 | M127: =M122+M126 -> 19214.0442
C129: 1. Growth with COGS(default) | G129: =G24/F24-1 -> 0.5005348474 | H129: 0.2827658267 | I129: 0.1593475424 | J129: 0.1277933759 | K129: 0.1288524305 | L129: 0.1297676167 | M129: 0.1469662872
C130: 2. Override I. inventory days | E130: =-((E75-D75)*E82/E24) -> 6.466339602 | F130: =-((F75-E75)*F82/F24) -> 9.701702031
C131: 3. overide ii. Absolute projections
C132: Inventories | D132: =D82 -> 509 | E132: =E82 -> 455 | F132: =F82 -> 1051 | G132: =IF(ISNUMBER(G131),G131,IF(ISNUMBER(G130),G130/(G16-F16)*G24,F132*(1+G129))) -> 1577.062125 | H132: 2023.0014 | I132: 2345.361701 | J132: 2645.083391 | K132: 2985.908815 | L132: 3373.383085 | M132: 3869.156673
C134: 1.Growth with Revenues | G134: =G23/F23-1 -> 0.4671954005 | H134: 0.2624044644 | I134: 0.1593475424 | J134: 0.1277933759 | K134: 0.1288524305 | L134: 0.1297676167 | M134: 0.129044939
C135: 2.Override i. Days of Revenues(Avg Collection Period) | E135: =(E75-D75)*E84/E23 -> 14.42815523 | F135: =(F75-E75)*F84/F23 -> 24.70080491
C136: 3.Override ii. Absolute Projection
C137: Vebdor Trade Account Receivables | D137: =D84 -> 0 | E137: =E84 -> 1696 | F137: =F84 -> 4414 | G137: =IF(ISNUMBER(G136),G136,IF(ISNUMBER(G135),G135/(G16-F16)*G23,F137*(1+G134))) -> 6476.200498 | H137: 8175.584421 | I137: 9478.343706 | J137: 10689.61325 | K137: 12066.99589 | L137: 13632.90119 | M137: 15392.15809
C139: 1. Growth with taxes (default) | G139: =G36/F36-(1) -> 0.3795886659 | H139: =H36/G36-(1) -> 0.2330404557 | I139: 0.1627501357 | J139: 0.1315397978 | K139: 0.1323491872 | L139: 0.133087999 | M139: 0.09011554952
C140: 2. Overide: absolute projection | G140: 1636 | H140: 1636 | I140: 1636 | J140: 1636 | K140: 1636 | L140: 1636 | M140: 1636
C141: Deffered Tax Assets | D141: =D83 -> 1447 | E141: =E83 -> 1135 | F141: =F83 -> 1636 | G141: =IF(ISNUMBER(G140),G140,F141*(1+G139)) -> 1636 | H141: 1636 | I141: 1636 | J141: 1636 | K141: 1636 | L141: 1636 | M141: 1636
C143: 1. straight line (default)
C144: 2. overide: absolute projections
C145: Other current assets | D145: =D85 -> 5822 | E145: =E85 -> 1444 | F145: =F85 -> 3447 | G145: =IF(ISNUMBER(G144),G144,F145) -> 3447 | H145: 3447 | I145: 3447 | J145: 3447 | K145: 3447 | L145: 3447 | M145: 3447
C147: 1. Growth with COGS(default) | G147: =G24/F24-1 -> 0.5005348474 | H147: 0.2827658267 | I147: 0.1593475424 | J147: 0.1277933759 | K147: 0.1288524305 | L147: 0.1297676167 | M147: 0.1469662872
C148: 2. Override I. payable payment period | E148: =-((E75-D75)*E97/E24) -> 79.59992991 | F148: =-((F75-E75)*F97/F24) -> 110.9095622
C149: 3. overide ii. Absolute projections
C150: Accounts payable | D150: =D97 -> 5520 | E150: =E97 -> 5601 | F150: =F97 -> 12015 | G150: =IF(ISNUMBER(G149),G149,IF(ISNUMBER(G148),G148/(F16-E16)*G23,F150*(1+G147))) -> 18028.92619 | H150: 23126.89041 | I150: 26812.10356 | J150: 30238.51279 | K150: 34134.81866 | L150: 38564.41272 | M150: 44232.08128
C152: 1. Growth with SG&A (default) | G152: =G28/F28-1 -> 0.387679101 | H152: =H28/G28-1 -> 0.2624044644 | I152: 0.1593475424 | J152: 0.1277933759 | K152: 0.1288524305 | L152: 0.1297676167 | M152: 0.129044939
C153: 2. Overide: absolute projection
C154: Accrued expenses | D154: =D98 -> 8572 | E154: =E98 -> 3852 | F154: =F98 -> 5723 | G154: =IF(ISNUMBER(G153),G153,F154*(1+G152)) -> 7941.687495 | H154: 10025.62175 | I154: 11623.17994 | J154: 13108.54534 | K154: 14797.61326 | L154: 16717.86427 | M154: 18875.22005
C156: Deffered Revenue
C157: 1.Growth with Revenues | G157: =G23/F23-1 -> 0.4671954005 | H157: 0.2624044644 | I157: 0.1593475424 | J157: 0.1277933759 | K157: 0.1288524305 | L157: 0.1297676167 | M157: 0.129044939
C158: 2.Override ii. Absolute Projection
C159: Deffered Revenue | D159: =D99 -> 0 | E159: =E99 -> 2053 | F159: =F99 -> 2984 | G159: =IF(ISNUMBER(G158),G158,F159*(1+G157)) -> 4378.111075 | H159: 5526.946967 | I159: 6407.652383 | J159: 7226.507913 | K159: 8157.661021 | L159: 9216.26125 | M159: 10405.57312
C161: Intangible assets
C162: Purchase of intangible assets | F162: 166
C163: Amortization | F163: 69 | G163: 83 | H163: 74 | I163: 39 | J163: 18 | K163: 17 | L163: 17 | M163: 17
C164: Intangible | D164: =D91 -> 285 | E164: =E91 -> 247 | F164: =F91 -> 342 | G164: =SUM(F164,G162)-G163 -> 259 | H164: 185 | I164: 146 | J164: 128 | K164: 111 | L164: 94 | M164: 77
C166: PP&E
C167: Capital expenditure | F167: 2600 | G167: =G23*OFFSET(G274,$T$3,0) -> 5741.8692 | H167: 7248.561312 | I167: 8403.601743 | J167: 9477.52638 | K167: 10698.72869 | L167: 12087.07721 | M167: 13646.85335
C168: Recurring assets sale | G168: 0 | H168: 0 | I168: 0 | J168: 0 | K168: 0 | L168: 0 | M168: 0
C169: 1.Straight Line | G169: =($F$172+G167-G168)/$D$173 -> 3503.289733 | H169: =($F$172+H167+G167-H168)/$D$173 -> 5919.476837 | I169: =($F$172+G167+H167+I167)-I168/$D$173 -> 26162.03226 | J169: =($F$172+G167+H167+I167+J167-J168)/$D$173 -> 11879.85288 | K169: =($F$172+SUM(G167:K167)-K168)/$D$173 -> 15446.09577 | L169: =($F$172+SUM(G167:L167)-L168)/$D$173 -> 19475.12151 | M169: =($F$172+SUM(G167:M167)-M168)/$D$173 -> 24024.07263
C170: 2.Over RideDepreciation Growth | G170: =G69 -> 0.38 | H170: 0.38 | I170: 0.38 | J170: 0.38 | K170: 0.38 | L170: 0.38 | M170: 0.38
C171: Depreciation | F171: 958 | G171: =IF(ISNUMBER(G170),F171*(1+G170),G169) -> 1322.04 | H171: =IF(ISNUMBER(H170),G171*(1+H170),H169) -> 1824.4152 | I171: 2517.692976 | J171: 3474.416307 | K171: 4794.694503 | L171: 6616.678415 | M171: 9131.016212
C172: Property, Plant and Equipment Net | D172: =D89 -> 2455 | E172: =E89 -> 2954 | F172: =F89 -> 4768 | G172: =F172+G167-G168-G171 -> 9187.8292 | H172: 14611.97531 | I172: 20497.88408 | J172: 26500.99415 | K172: 32405.02834 | L172: 37875.42713 | M172: 42391.26428
C173: Number of years | D173: 3
C174: Weighted average basic shares outstanding
C175: Values of shares issued | F175: 703 | G175: 703 | H175: 703 | I175: 703 | J175: 703 | K175: 703 | L175: 703 | M175: 703
C176: Expected average share price | F176: 43.49 | G176: 90.46 | H176: 90.46 | I176: 90.46 | J176: 90.46 | K176: 90.46 | L176: 90.46 | M176: 90.46
C177: Shares issued | F177: =F175/F176 -> 16.16463555 | G177: =G175/G176 -> 7.77139067 | H177: 7.77139067 | I177: 7.77139067 | J177: 7.77139067 | K177: 7.77139067 | L177: 7.77139067 | M177: 7.77139067
C178: End of period basic shares outstanding | F178: 915.9 | G178: =F178+G177 -> 923.6713907 | H178: =G178+H177 -> 931.4427813 | I178: 939.214172 | J178: 946.9855627 | K178: 954.7569533 | L178: 962.528344 | M178: 970.2997347
C179: Weighted average basic shares outstanding | E179: =E47 -> 893.016 | F179: =F47 -> 909.461 | G179: =AVERAGE(F178:G178) -> 919.7856953 | H179: 927.557086 | I179: 935.3284767 | J179: 943.0998673 | K179: 950.871258 | L179: 958.6426487 | M179: 966.4140394
C181: Cash Flow Statement
C183: Net Income | G183: =G37 -> 19777.09332 | H183: 24385.95616 | I183: 28354.77383 | J183: 32084.55505 | K183: 36330.91983 | L183: 41166.12926 | M183: 44875.83762
C184: Depreciation & Amortization | G184: =G42 -> 1405.04 | H184: 1898.4152 | I184: 2556.692976 | J184: 3492.416307 | K184: 4811.694503 | L184: 6633.678415 | M184: 9148.016212
C185: Deffered Revenue Non-Current | G185: =G102-F102 -> 0 | H185: 0 | I185: 0 | J185: 0 | K185: 0 | L185: 0 | M185: 0
C186: Working Capital Changes
C187: Net Receivables | G187: =-(G81-F81) -> -2574.246657 | H187: -2121.342414 | I187: -1626.235538 | J187: -1512.028809 | K187: -1719.387945 | L187: =-(L81-K81) -> -1954.720931 | M187: -2196.081906
C188: Inventories | G188: -526.0621246 | H188: -445.9392754 | I188: -322.3603015 | J188: -299.7216895 | K188: -340.8254238 | L188: -387.4742706 | M188: -495.7735874
C189: Deferred Tax Assets | G189: 0 | H189: 0 | I189: 0 | J189: 0 | K189: 0 | L189: 0 | M189: 0
C190: Vendor Non-Trade Receivables | G190: -2062.200498 | H190: -1699.383923 | I190: -1302.759286 | J190: -1211.26954 | K190: -1377.382648 | L190: -1565.905298 | M190: -1759.256902
C191: Other Current Assets | G191: 0 | H191: 0 | I191: 0 | J191: 0 | K191: 0 | L191: 0 | M191: 0
C192: Account Payables | G192: =G97-F97 -> 6013.926191 | H192: 5097.964219 | I192: 3685.213151 | J192: 3426.409228 | K192: 3896.305868 | L192: 4429.594064 | M192: 5667.668556
C193: Deffered Revenue | G193: =G99-F99 -> 1394.111075 | H193: 1148.835892 | I193: 880.7054164 | J193: 818.8555295 | K193: 931.1531086 | L193: 1058.600229 | M193: 1189.31187
C194: Accrued Expenses | G194: =G98-F98 -> 2218.687495 | H194: 2083.934253 | I194: 1597.558187 | J194: 1485.365402 | K194: 1689.067927 | L194: 1920.251006 | M194: 2157.355774
C195: Operating Cash Flows | G195: =SUM(G183:G194) -> 25646.3488 | H195: =SUM(H183:H194) -> 30348.44011 | I195: 33823.58844 | J195: 38284.58148 | K195: 44221.54522 | L195: 51300.15247 | M195: 58587.07763
C197: Long Term Marketable Securities | G197: =-(G88-F88) -> 0 | H197: 0 | I197: 0 | J197: 0 | K197: 0 | L197: 0 | M197: 0
C198: Payments For Acquistion of PP&E | G198: =-G167 -> -5741.8692 | H198: -7248.561312 | I198: -8403.601743 | J198: -9477.52638 | K198: -10698.72869 | L198: -12087.07721 | M198: -13646.85335
C199: Payments For Acquistion of Intangible Assets | G199: =-G162 -> 0 | H199: 0 | I199: 0 | J199: 0 | K199: 0 | L199: 0 | M199: 0
C200: Proceeds From Sale of Fixed Assets | G200: =G168 -> 0 | H200: =H168 -> 0 | I200: 0 | J200: 0 | K200: 0 | L200: 0 | M200: 0
C201: Purchase/proceeds from other long term assets | G201: =-(G92-F92) -> 0 | H201: 0 | I201: 0 | J201: 0 | K201: 0 | L201: 0 | M201: 0
C202: Investings Cash Flows | G202: =SUM(G197:G201) -> -5741.8692 | H202: -7248.561312 | I202: -8403.601743 | J202: -9477.52638 | K202: -10698.72869 | L202: -12087.07721 | M202: -13646.85335
C204: Proceeds From Issuance of Common Stock | G204: =G109-F109 -> 703 | H204: 703 | I204: 703 | J204: 703 | K204: 703 | L204: 703 | M204: 703
C205: Accumulated other Comprehensive (Loss)/Income | G205: =G111-F111 -> 0 | H205: 0 | I205: 0 | J205: 0 | K205: 0 | L205: 0 | M205: 0
C206: Financing Cash Flows | G206: =SUM(G204:G205) -> 703 | H206: 703 | I206: 703 | J206: 703 | K206: 703 | L206: 703 | M206: 703
C208: Increase/(Decrease) In Cash and Cash Equivalents | G208: =SUM(G195,G202,G206) -> 20607.4796 | H208: 23802.8788 | I208: 26122.9867 | J208: 29510.0551 | K208: 34225.81653 | L208: 39916.07526 | M208: 45643.22428
C209: Cash and Cash Equivalents at Beginning of The Year | G209: =F77 -> 11261 | H209: 31868.4796 | I209: 55671.3584 | J209: 81794.3451 | K209: 111304.4002 | L209: 145530.2167 | M209: 185446.292
C210: Cash and Cash Equivalents at End of The Year | G210: =SUM(G208:G209) -> 31868.4796 | H210: 55671.3584 | I210: 81794.3451 | J210: 111304.4002 | K210: 145530.2167 | L210: 185446.292 | M210: 231089.5163
C212: Investement Schedule
D213: =D75 -> 2008-09-25 | E213: 2009-09-25 | F213: 2010-09-25 | G213: 2011-09-25 | H213: 2012-09-25 | I213: 2013-09-25 | J213: 2014-09-25 | K213: 2015-09-25 | L213: =L75 -> 2016-09-25 | M213: =M75 -> 2017-09-25
C214: Cash and CASH EQUIVALENT | G214: =G77 -> 31868.4796 | H214: =H77 -> 55671.3584 | I214: 81794.3451 | J214: 111304.4002 | K214: 145530.2167 | L214: 185446.292 | M214: 231089.5163
C215: Minimum Cash Balance (Not Available For Investemnt % of Total Sales | F215: 0.03 | G215: =$F$215*G23 -> 2870.9346 | H215: =$F$215*H23 -> 3624.280656 | I215: 4201.800872 | J215: 4738.76319 | K215: 5349.364344 | L215: 6043.538606 | M215: 6823.426677
C216: Cash Avialabe For Investement | G216: =G214-G215 -> 28997.545 | H216: =H214-H215 -> 52047.07774 | I216: 77592.54422 | J216: 106565.637 | K216: 140180.8524 | L216: 179402.7534 | M216: 224266.0896
C217: Short Term Securities | G217: =G78 -> 14359 | H217: =H78 -> 14359 | I217: 14359 | J217: 14359 | K217: 14359 | L217: 14359 | M217: 14359
C218: Long Term Securities | G218: =G88 -> 25391 | H218: =H88 -> 25391 | I218: 25391 | J218: 25391 | K218: 25391 | L218: 25391 | M218: 25391
C219: Total Investemts | G219: =SUM(G216:G218) -> 68747.545 | H219: =SUM(H216:H218) -> 91797.07774 | I219: 117342.5442 | J219: 146315.637 | K219: 179930.8524 | L219: 219152.7534 | M219: 264016.0896
C220: Interest Income | G220: =G219*$F$221 -> 687.47545 | H220: 917.9707774 | I220: 1173.425442 | J220: 1463.15637 | K220: 1799.308524 | L220: 2191.527534 | M220: 2640.160896
C221: Effective Interest Rate | F221: 0.01
C223: Ratio Analysis
C225: Internal Liquidity
C226: Current Ratio (Curr. Assets/Curr. Liab.) | G226: =G86/G100 -> 2.222432389 | H226: 2.469464037 | I226: 2.785095861 | J226: 3.112791179 | K226: 3.417201702 | L226: 3.704154312 | M226: 3.9313777
C227: Cash Ratio (Cash/Current Liab.) | G227: =(G77+G78)/G100 -> 1.523209952 | H227: 1.810530964 | I227: 2.14422502 | J227: 2.484764473 | K227: 2.800647336 | L227: 3.097826671 | M227: 3.338850754
C229: Dupont Analysis
C230: Operating Profit Margin | F230: =F30/F23 -> 0.2818704484 | G230: 0.27 | H230: 0.26 | I230: 0.26 | J230: 0.26 | K230: 0.26 | L230: =L30/L23 -> 0.26 | M230: =M30/M23 -> 0.25
C231: Asset Turnover (Sales/Assets) | F231: =F23/F94 -> 0.867549845 | G231: 0.9088990915 | H231: 0.8709522254 | I231: 0.8052631387 | J231: 0.7435140402 | K231: 0.6965334723 | L231: 0.6598967807 | M231: 0.6320267533
... 46 more rows

Sheet valuation sheet
C1: ="Discounted Cash Flow Model for "&'financial statements'!D3 -> Discounted Cash Flow Model for APPLE
C2: All figures in millions, except per share data
C4: Operating scenario: | D4: =IF('financial statements'!T3=1,"Strong Case",IF('financial statements'!T3="3","Worst Case","Base Case")) -> Base Case
C5: Last fiscal year end date: | D5: ='financial statements'!D4 -> 2010-09-25
C6: Valuation / deal date | D6: ='dash board'!E13 -> 2011-04-19
C7: Sub year fraction | D7: =1-(D6-D5)/365 -> 0.4356164384
C8: Weighted average cost of capital | D8: =IF(ISNUMBER('dash board'!E18),'dash board'!E18,D9) -> 0.1100571774
C9: Discount Rate | D9: =J69 -> 0.1100571774
C10: Free cash flow buildup
D11: Projected Annual Forecast
D12: =YEAR(D5)+1 -> 2011 | E12: =D12+1 -> 2012 | F12: 2013 | G12: 2014 | H12: 2015 | I12: 2016 | J12: 2017
D13: =DATE(YEAR(D5)+1,MONTH(D5),DAY(D5)) -> 2011-09-25 | E13: =DATE(YEAR(D13)+1,MONTH(D13),DAY(D13)) -> 2012-09-25 | F13: 2013-09-25 | G13: 2014-09-25 | H13: 2015-09-25 | I13: 2016-09-25 | J13: 2017-09-25
C14: Total Revenues | D14: ='financial statements'!G23 -> 95697.82 | E14: ='financial statements'!H23 -> 120809.3552 | F14: ='financial statements'!I23 -> 140060.0291 | G14: ='financial statements'!J23 -> 157958.773 | H14: ='financial statements'!K23 -> 178312.1448 | I14: ='financial statements'!L23 -> 201451.2869 | J14: ='financial statements'!M23 -> 227447.5559
C15: EBITDA | D15: ='financial statements'!G43 -> 27243.4514 | E15: ='financial statements'!H43 -> 33308.84755 | F15: ='financial statements'!I43 -> 38972.30053 | G15: ='financial statements'!J43 -> 44561.69729 | H15: ='financial statements'!K43 -> 51172.85215 | I15: ='financial statements'!L43 -> 59011.013 | J15: ='financial statements'!M43 -> 66009.90519
C16: EBIT | D16: ='financial statements'!G41 -> 25838.4114 | E16: ='financial statements'!H41 -> 31410.43235 | F16: ='financial statements'!I41 -> 36415.60755 | G16: ='financial statements'!J41 -> 41069.28098 | H16: ='financial statements'!K41 -> 46361.15765 | I16: ='financial statements'!L41 -> 52377.33459 | J16: ='financial statements'!M41 -> 56861.88897
C17: Tax rate | D17: ='financial statements'!G68 -> 0.24 | E17: ='financial statements'!H68 -> 0.24 | F17: ='financial statements'!I68 -> 0.24 | G17: ='financial statements'!J68 -> 0.24 | H17: ='financial statements'!K68 -> 0.24 | I17: ='financial statements'!L68 -> 0.24 | J17: ='financial statements'!M68 -> 0.24
C18: EBIAT | D18: =D16*(1-D17) -> 19637.19266 | E18: 23871.92859 | F18: 27675.86174 | G18: 31212.65354 | H18: 35234.47981 | I18: 39806.77429 | J18: 43215.03562
C19: Depreciation & Amortization | D19: ='financial statements'!G42 -> 1405.04 | E19: ='financial statements'!H42 -> 1898.4152 | F19: ='financial statements'!I42 -> 2556.692976 | G19: ='financial statements'!J42 -> 3492.416307 | H19: ='financial statements'!K42 -> 4811.694503 | I19: ='financial statements'!L42 -> 6633.678415 | J19: ='financial statements'!M42 -> 9148.016212
C20: Deffered Revenue Non-Current | D20: ='financial statements'!G185 -> 0 | E20: ='financial statements'!H185 -> 0 | F20: ='financial statements'!I185 -> 0 | G20: ='financial statements'!J185 -> 0 | H20: ='financial statements'!K185 -> 0 | I20: ='financial statements'!L185 -> 0 | J20: ='financial statements'!M185 -> 0
C21: Net Receivables | D21: ='financial statements'!G187 -> -2574.246657 | E21: ='financial statements'!H187 -> -2121.342414 | F21: ='financial statements'!I187 -> -1626.235538 | G21: ='financial statements'!J187 -> -1512.028809 | H21: ='financial statements'!K187 -> -1719.387945 | I21: ='financial statements'!L187 -> -1954.720931 | J21: ='financial statements'!M187 -> -2196.081906
C22: Inventories | D22: ='financial statements'!G188 -> -526.0621246 | E22: ='financial statements'!H188 -> -445.9392754 | F22: ='financial statements'!I188 -> -322.3603015 | G22: ='financial statements'!J188 -> -299.7216895 | H22: ='financial statements'!K188 -> -340.8254238 | I22: ='financial statements'!L188 -> -387.4742706 | J22: ='financial statements'!M188 -> -495.7735874
C23: Deferred Tax Assets | D23: ='financial statements'!G189 -> 0 | E23: ='financial statements'!H189 -> 0 | F23: ='financial statements'!I189 -> 0 | G23: ='financial statements'!J189 -> 0 | H23: ='financial statements'!K189 -> 0 | I23: ='financial statements'!L189 -> 0 | J23: ='financial statements'!M189 -> 0
C24: Vendor Non-Trade Receivables | D24: ='financial statements'!G190 -> -2062.200498 | E24: ='financial statements'!H190 -> -1699.383923 | F24: ='financial statements'!I190 -> -1302.759286 | G24: ='financial statements'!J190 -> -1211.26954 | H24: ='financial statements'!K190 -> -1377.382648 | I24: ='financial statements'!L190 -> -1565.905298 | J24: ='financial statements'!M190 -> -1759.256902
C25: Other Current Assets | D25: ='financial statements'!G191 -> 0 | E25: ='financial statements'!H191 -> 0 | F25: ='financial statements'!I191 -> 0 | G25: ='financial statements'!J191 -> 0 | H25: ='financial statements'!K191 -> 0 | I25: ='financial statements'!L191 -> 0 | J25: ='financial statements'!M191 -> 0
C26: Account Payables | D26: ='financial statements'!G192 -> 6013.926191 | E26: ='financial statements'!H192 -> 5097.964219 | F26: ='financial statements'!I192 -> 3685.213151 | G26: ='financial statements'!J192 -> 3426.409228 | H26: ='financial statements'!K192 -> 3896.305868 | I26: ='financial statements'!L192 -> 4429.594064 | J26: ='financial statements'!M192 -> 5667.668556
C27: Deffered Revenue | D27: ='financial statements'!G193 -> 1394.111075 | E27: ='financial statements'!H193 -> 1148.835892 | F27: ='financial statements'!I193 -> 880.7054164 | G27: ='financial statements'!J193 -> 818.8555295 | H27: ='financial statements'!K193 -> 931.1531086 | I27: ='financial statements'!L193 -> 1058.600229 | J27: ='financial statements'!M193 -> 1189.31187
C28: Accrued Expenses | D28: ='financial statements'!G194 -> 2218.687495 | E28: ='financial statements'!H194 -> 2083.934253 | F28: ='financial statements'!I194 -> 1597.558187 | G28: ='financial statements'!J194 -> 1485.365402 | H28: ='financial statements'!K194 -> 1689.067927 | I28: ='financial statements'!L194 -> 1920.251006 | J28: ='financial statements'!M194 -> 2157.355774
C29: Working Capital Cash | D29: =SUM(D21:D28) -> 4464.215482 | E29: 4064.068752 | F29: 2912.12163 | G29: 2707.610121 | H29: 3078.930886 | I29: 3500.344799 | J29: 4563.223806
C30: Capital expenditures | D30: =SUM('financial statements'!G198:G199) -> -5741.8692 | E30: =SUM('financial statements'!H198:H199) -> -7248.561312 | F30: =SUM('financial statements'!I198:I199) -> -8403.601743 | G30: =SUM('financial statements'!J198:J199) -> -9477.52638 | H30: =SUM('financial statements'!K198:K199) -> -10698.72869 | I30: =SUM('financial statements'!L198:L199) -> -12087.07721 | J30: =SUM('financial statements'!M198:M199) -> -13646.85335
C31: Unlevered free cash flows | D31: =D18+D19+D29+D30 -> 19764.57895 | E31: 22585.85123 | F31: 24741.0746 | G31: 27935.15359 | H31: 32426.37652 | I31: 37853.72029 | J31: 43279.42228
C32: Discount factor | D32: =1/((1+$D$8)^D7) -> 0.9555354866 | E32: =1/((1+$D$8)^((E12-$D$12)+$D$7)) -> 0.8607984399 | F32: 0.7754541455 | G32: 0.698571354 | H32: 0.6293111456 | I32: 0.5669177754 | J32: 0.5107104273
C33: Midyear adustment factor | D33: =((1+$D$8)^(D7/2)) -> 1.023002252 | E33: =((1+$D$8)^(0.5)) -> 1.05359251 | F33: 1.05359251 | G33: 1.05359251 | H33: 1.05359251 | I33: 1.05359251 | J33: 1.05359251
C34: Present value of free cash flows | D34: =D31*D32*D33 -> 19320.17149 | E34: 20483.80388 | F34: 20213.77166 | G34: 20560.53972 | H34: 21499.90393 | I34: 22610.03932 | J34: 23287.82102
C35: Sum of present values of FCFs | D35: =SUM(D34:H34+I34+J34) -> 65218.03183
C37: Terminal value | E37: Equity value calculations | I37: Shares Outstanding
C39: Growth in prepetuity method | E39: Enterprise value | H39: =D56 -> 410926.1341 | I39: Basic Shares Outstanding | L39: ='financial statements'!F178 -> 915.9
C40: Long term growth rate | D40: ='dash board'!E14 -> 0.04 | E40: DEBT | H40: 0 | I40: Current Share Price | L40: ='financial statements'!D5 -> 331
C41: Free cash flow (t+1) | D41: =OFFSET(D31,0,(exit-'valuation sheet'!D12))*(1+'valuation sheet'!D40) -> 45010.59918 | I41: Options/Warrants Data
C42: Terminal value | D42: =D41/($D$8-D40) -> 642483.7658 | E42: Equity value | H42: =H39-H40 -> 410926.1341 | J42: # of options | K42: $ strike | L42: # In-the-$
C43: Midyear adjusted terminal value | D43: =D42*J33 -> 676916.0835 | E43: Shares outstanding | H43: =L56 -> 931.6576697 | I43: Batch 1 | J43: 17.791 | K43: 77.74 | L43: =IF($L$40>K43,J43,0) -> 17.791
C44: Present value of terminal value | D44: =D43*J32 -> 345708.1023 | E44: Equity value / share | H44: =H42/H43 -> 441.0698773 | I44: Batch 2 | J44: 3.88 | K44: 148 | L44: 3.88
C45: Enterprise value | D45: =D44+D35 -> 410926.1341 | I45: Batch 3 | L45: 0
I46: Batch 4 | L46: 0
C47: Exit multiple method | I47: Batch 5 | L47: 0
C48: Exit EV / EBITDA multiple | D48: ='dash board'!E15 -> 12 | I48: Batch 6 | L48: 0
C49: LTM EBITDA at end of projection | D49: =OFFSET(D15,0,(exit-'valuation sheet'!D12)) -> 66009.90519 | K49: Total in-the-$ options: | L49: =SUM(L43:L48) -> 21.671
C50: Terminal value | D50: =D49*D48 -> 792118.8622 | K50: Total $ proceeds: | L50: =SUMPRODUCT(K43:K48,L43:L48) -> 1957.31234
C51: Present value of terminal value | D51: =D50*J32 -> 404543.3626 | K51: Total shares repurchased: | L51: =L50/L40 -> 5.913330332
C52: Enterprise value | D52: =D51+D35 -> 469761.3944 | K52: Basic shares outstanding | L52: =L39 -> 915.9
K53: New shares from options: | L53: =L49-L51 -> 15.75766967
C54: Select a terminal value method
C55: Prepetual growth = 1 Exit multiple = 2 | D55: ='dash board'!E16 -> 1
C56: Enterprise value | D56: =IF(D55=1,D45,D52) -> 410926.1341 | K56: Total Shares Outstanding | L56: =SUM(L52:L54) -> 931.6576697
C57: Terminal value as a percent of total value | D57: =IF(D55=1,D44, D51)/D56 -> 0.8412901336
C59: Analysis of WACC
C61: Cost of debt | F61: Capital Structure
C62: Cost of debt | D62: =D67+0.005 -> 0.0469 | G62: Current capital structure | I62: Target capital structure
C63: Marginal tax rate | D63: ='financial statements'!G68 -> 0.24 | G63: Market value | H63: % Weights | I63: override | J63: % Weight
C64: Cost of debt after tax shield | D64: =D62*(1-D63) -> 0.035644 | F64: debt | G64: =H49 -> 0 | H64: =G64/G66 -> 0 | J64: =IF(I64,I64,H64) -> 0
F65: Equity | G65: =G74 -> 308378.6887 | H65: =G65/G66 -> 1 | J65: =IF(I65,I65,H65) -> 1
C66: Cost of equity | F66: Total | G66: =G64+G65 -> 308378.6887
C67: Risk-free rate (rf) | D67: 0.0419
C68: Market Risk Premium (rm - rf) | D68: 0.06 | F68: Weight average cost of capital
C69: Raw (observed) beta | D69: 1.35 | F69: Weight average cost of capital | J69: =(J64*D64)+(J65*D70) -> 0.1100571774
C70: Cost of equity using relevered industry beta | D70: =D67+(D68*M78) -> 0.1100571774
C72: Industry beta calculation
C73: Comps | D73: Raw beta | E73: Share price | F73: Shares | G73: Market | H73: Debt (In Million) | I73: D/E | J73: Tax rate | K73: Unl. Beta | L73: Weigh. Beta | M73: Relev. Beta
C74: ='financial statements'!D3 -> APPLE | D74: =D69 -> 1.35 | E74: ='financial statements'!D5 -> 331 | F74: =L56 -> 931.6576697 | G74: =E74*F74 -> 308378.6887 | H74: 0 | I74: =H74/G74 -> 0 | J74: =D63 -> 0.24 | K74: =D74/(1+(I74*(1-J74))) -> 1.35 | L74: =G74/$G$78*K74 -> 0.6254823706
C75: Dell Inc. | D75: 1.39 | E75: 13.66 | F75: 1930.29 | G75: =E75*F75 -> 26367.7614 | H75: 6000 | I75: =H75/G75 -> 0.2275506028 | J75: 0.292 | K75: =D75/(1+(I75*(1-J75))) -> 1.197134635 | L75: =G75/$G$78*K75 -> 0.04742564035
C76: Hewlett-Packard | D76: 1.03 | E76: 42.26 | F76: 2190.42 | G76: =E76*F76 -> 92567.1492 | H76: 22300 | I76: =H76/G76 -> 0.2409061983 | J76: 0.2017 | K76: =D76/(1+(I76*(1-J76))) -> 0.8638653702 | L76: =G76/$G$78*K76 -> 0.1201433954
C77: Microsoft Corp. | D77: 0.99 | E77: 27.85 | F77: 8555.5 | G77: =E77*F77 -> 238270.675 | H77: 10660 | I77: =H77/G77 -> 0.04473903471 | J77: 0.25 | K77: =D77/(1+(I77*(1-J77))) -> 0.9578597109 | L77: =G77/$G$78*K77 -> 0.3429015508
G78: =SUM(G74:G77) -> 665584.2743 | J78: Average: | K78: =AVERAGE(K74:K77) -> 1.092214929 | L78: =SUM(L74:L77) -> 1.135952957 | M78: =L78*(1+(1-J74)*I74) -> 1.135952957

Sheet graphs
B1: 2011 | C1: =B1+1 -> 2012 | D1: =C1+1 -> 2013 | E1: 2014 | F1: 2015 | G1: 2016 | H1: 2017
A2: Basic EPS | B2: ='financial statements'!G48 -> 21.5018492 | C2: ='financial statements'!H48 -> 26.29051788 | D2: ='financial statements'!I48 -> 30.31531119 | E2: ='financial statements'!J48 -> 34.02031552 | F2: ='financial statements'!K48 -> 38.2080324 | G2: ='financial statements'!L48 -> 42.9421008 | H2: ='financial statements'!M48 -> 46.43541566
A3: Diluted EPS | B3: ='financial statements'!G55 -> 21.15114136 | C3: ='financial statements'!H55 -> 25.86523866 | D3: ='financial statements'!I55 -> 29.82893543 | E3: ='financial statements'!J55 -> 33.47892316 | F3: ='financial statements'!K55 -> 37.60488854 | G3: ='financial statements'!L55 -> 42.2696352 | H3: ='financial statements'!M55 -> 45.71400204
A4: FCFF Per Share | B4: ='valuation sheet'!D31/'financial statements'!G54 -> 21.13775753 | C4: ='valuation sheet'!E31/'financial statements'!H54 -> 23.95593712 | D4: ='valuation sheet'!F31/'financial statements'!I54 -> 26.02736037 | E4: ='valuation sheet'!G31/'financial statements'!J54 -> 29.14919216 | F4: ='valuation sheet'!H31/'financial statements'!K54 -> 33.56342973 | G4: ='valuation sheet'!I31/'financial statements'!L54 -> 38.86843326 | H4: ='valuation sheet'!J31/'financial statements'!M54 -> 44.08776981
B9: FY11 | C9: FY12 | D9: FY13 | E9: FY14 | F9: FY15 | G9: FY16 | H9: FY17
A10: Return On Equity | B10: ='financial statements'!G235 -> 0.2876355381 | C10: ='financial statements'!H235 -> 0.2556974715 | D10: ='financial statements'!I235 -> 0.2260770613 | E10: ='financial statements'!J235 -> 0.2011054892 | F10: ='financial statements'!K235 -> 0.1832844801 | G10: ='financial statements'!L235 -> 0.1700356314 | H10: ='financial statements'!M235 -> 0.154511989
A11: Operating Profit Margin | B11: ='financial statements'!G230 -> 0.27 | C11: ='financial statements'!H230 -> 0.26 | D11: ='financial statements'!I230 -> 0.26 | E11: ='financial statements'!J230 -> 0.26 | F11: ='financial statements'!K230 -> 0.26 | G11: ='financial statements'!L230 -> 0.26 | H11: ='financial statements'!M230 -> 0.25
B13: FY11 | C13: FY12 | D13: FY13 | E13: FY14 | F13: FY15 | G13: FY16 | H13: FY17
A14: Asset Turnover | B14: ='financial statements'!G231 -> 0.9088990915 | C14: ='financial statements'!H231 -> 0.8709522254 | D14: ='financial statements'!I231 -> 0.8052631387 | E14: ='financial statements'!J231 -> 0.7435140402 | F14: ='financial statements'!K231 -> 0.6965334723 | G14: ='financial statements'!L231 -> 0.6598967807 | H14: ='financial statements'!M231 -> 0.6320267533
A15: Equity multiplier | B15: ='financial statements'!G233 -> 1.542231316 | C15: ='financial statements'!H233 -> 1.485748019 | D15: ='financial statements'!I233 -> 1.420796045 | E15: ='financial statements'!J233 -> 1.368824629 | F15: ='financial statements'!K233 -> 1.331670442 | G15: ='financial statements'!L233 -> 1.30399819 | H15: ='financial statements'!M233 -> 1.286687613
A16: Current Ratio | B16: ='financial statements'!G226 -> 2.222432389 | C16: ='financial statements'!H226 -> 2.469464037 | D16: ='financial statements'!I226 -> 2.785095861 | E16: ='financial statements'!J226 -> 3.112791179 | F16: ='financial statements'!K226 -> 3.417201702 | G16: ='financial statements'!L226 -> 3.704154312 | H16: ='financial statements'!M226 -> 3.9313777
